[Event "Live Chess"]
[Site "Chess.com"]
[Date "2024.06.01"]
[Round "-"]
[White "dhairyapandyauk"]
[Black "FortunatusMax"]
[Result "1-0"]
[WhiteElo "1718"]
[BlackElo "914"]
[TimeControl "300"]
[EndTime "11:25:19 PDT"]
[Termination "dhairyapandyauk won by checkmate"]

1. e4 {[%clk 0:04:57.3]} 1... e5 {[%clk 0:04:56.1]} 2. Nf3 {[%clk 0:04:50.2]}
2... f5 {[%clk 0:04:54.5]} 3. exf5 {[%clk 0:04:47.5]} 3... Nf6 {[%clk
0:04:52.7]} 4. d3 {[%clk 0:04:45]} 4... Bd6 {[%clk 0:04:50]} 5. Nc3 {[%clk
0:04:41.2]} 5... O-O {[%clk 0:04:48]} 6. Be2 {[%clk 0:04:40.6]} 6... h6 {[%clk
0:04:44.1]} 7. O-O {[%clk 0:04:40]} 7... Nc6 {[%clk 0:04:42.1]} 8. d4 {[%clk
0:04:37.8]} 8... exd4 {[%clk 0:04:40.2]} 9. Nxd4 {[%clk 0:04:36.8]} 9... Nxd4
{[%clk 0:04:38.3]} 10. Qxd4 {[%clk 0:04:36.3]} 10... b6 {[%clk 0:04:29.9]} 11.
Bc4+ {[%clk 0:04:33.1]} 11... Kh8 {[%clk 0:04:25.6]} 12. Qh4 {[%clk 0:04:31.3]}
12... g5 {[%clk 0:04:13.5]} 13. Bxg5 {[%clk 0:04:16.5]} 13... Be7 {[%clk
0:04:01.8]} 14. Qxh6+ {[%clk 0:04:08.5]} 14... Nh7 {[%clk 0:03:59.6]} 15. Bxe7
{[%clk 0:03:33.5]} 15... Qxe7 {[%clk 0:03:53.6]} 16. Rae1 {[%clk 0:03:32.2]}
16... Qg7 {[%clk 0:03:44.9]} 17. Qxg7+ {[%clk 0:03:25.3]} 17... Kxg7 {[%clk
0:03:43.1]} 18. Re7+ {[%clk 0:03:24.9]} 18... Kh8 {[%clk 0:03:39.2]} 19. Rfe1
{[%clk 0:03:22.1]} 19... Bb7 {[%clk 0:03:37.4]} 20. Rxd7 {[%clk 0:03:21.3]}
20... Rac8 {[%clk 0:03:32.9]} 21. Ree7 {[%clk 0:03:17]} 21... Ng5 {[%clk
0:03:17.3]} 22. h4 {[%clk 0:03:04.3]} 22... Rxf5 {[%clk 0:03:00.8]} 23. hxg5
{[%clk 0:03:00.4]} 23... Rxg5 {[%clk 0:02:59.6]} 24. Rh7# {[%clk 0:02:59.3]} 1-0

[Event "Live Chess"]
[Site "Chess.com"]
[Date "2024.06.01"]
[Round "-"]
[White "FlyingChessKestrel13"]
[Black "PureDashingOctopus"]
[Result "0-1"]
[WhiteElo "2091"]
[BlackElo "2251"]
[TimeControl "300"]
[EndTime "11:25:35 PDT"]
[Termination "PureDashingOctopus won by resignation"]

1. d4 {[%clk 0:04:57.6]} 1... Nf6 {[%clk 0:04:57.7]} 2. Nf3 {[%clk 0:04:56.1]}
2... g6 {[%clk 0:04:56.3]} 3. g3 {[%clk 0:04:55.6]} 3... Bg7 {[%clk 0:04:55.6]}
4. Bg2 {[%clk 0:04:54.6]} 4... O-O {[%clk 0:04:54.8]} 5. O-O {[%clk 0:04:54.1]}
5... d5 {[%clk 0:04:54.4]} 6. c4 {[%clk 0:04:53.1]} 6... c6 {[%clk 0:04:53.6]}
7. Nc3 {[%clk 0:04:51.4]} 7... dxc4 {[%clk 0:04:53]} 8. e3 {[%clk 0:04:46.8]}
8... b5 {[%clk 0:04:50]} 9. Ne5 {[%clk 0:04:44]} 9... Nd5 {[%clk 0:04:48.9]} 10.
Nxc6 {[%clk 0:04:38.3]} 10... Nxc6 {[%clk 0:04:38.9]} 11. Bxd5 {[%clk
0:04:36.2]} 11... Bb7 {[%clk 0:04:38.5]} 12. Bg2 {[%clk 0:04:34.2]} 12... b4
{[%clk 0:04:37.5]} 13. Na4 {[%clk 0:04:32.7]} 13... Na5 {[%clk 0:04:29.1]} 14.
f3 {[%clk 0:04:28]} 14... Bc6 {[%clk 0:04:24.3]} 15. Nc5 {[%clk 0:04:24.9]}
15... e5 {[%clk 0:04:20.8]} 16. dxe5 {[%clk 0:04:20.4]} 16... Qe7 {[%clk
0:04:18.4]} 17. Qd6 {[%clk 0:04:16.3]} 17... Qxe5 {[%clk 0:04:05.3]} 18. Qxe5
{[%clk 0:04:09.6]} 18... Bxe5 {[%clk 0:04:05.2]} 19. Bd2 {[%clk 0:04:05.6]}
19... c3 {[%clk 0:04:00.3]} 20. bxc3 {[%clk 0:04:03.8]} 20... bxc3 {[%clk
0:04:00.2]} 21. Be1 {[%clk 0:04:02]} 21... c2 {[%clk 0:03:58.8]} 22. Bxa5 {[%clk
0:03:58.2]} 22... Bxa1 {[%clk 0:03:56.5]} 23. Rxa1 {[%clk 0:03:56.4]} 23... Rfd8
{[%clk 0:03:46.3]} 24. Nb3 {[%clk 0:03:48]} 24... Rd1+ {[%clk 0:03:43.9]} 25.
Kf2 {[%clk 0:03:42.6]} 25... Rxa1 {[%clk 0:03:43.3]} 26. Bd2 {[%clk 0:03:41.1]}
26... Rxa2 {[%clk 0:03:39]} 27. e4 {[%clk 0:03:38.3]} 27... c1=Q {[%clk
0:03:36.8]} 28. Nxc1 {[%clk 0:03:36.2]} 28... Rxd2+ {[%clk 0:03:35.8]} 0-1

[Event "Live Chess"]
[Site "Chess.com"]
[Date "2024.06.01"]
[Round "-"]
[White "hisaveliy"]
[Black "GEMdzq"]
[Result "0-1"]
[WhiteElo "634"]
[BlackElo "2301"]
[TimeControl "300"]
[EndTime "11:25:40 PDT"]
[Termination "GEMdzq won on time"]

1. e4 {[%clk 0:04:55.2]} 1... d6 {[%clk 0:04:55.9]} 2. d4 {[%clk 0:04:49.1]}
2... Nf6 {[%clk 0:04:53]} 3. Nc3 {[%clk 0:04:46.4]} 3... g6 {[%clk 0:04:52.3]}
4. Bc4 {[%clk 0:04:42.3]} 4... Bg7 {[%clk 0:04:51.5]} 5. Nf3 {[%clk 0:04:40.1]}
5... O-O {[%clk 0:04:50.6]} 6. O-O {[%clk 0:04:39]} 6... c6 {[%clk 0:04:47.3]}
7. e5 {[%clk 0:04:32.2]} 7... Ne8 {[%clk 0:04:37.5]} 8. Re1 {[%clk 0:04:12.7]}
8... d5 {[%clk 0:04:31.2]} 9. Bd3 {[%clk 0:04:04.6]} 9... Nc7 {[%clk 0:04:26]}
10. Bg5 {[%clk 0:03:52.3]} 10... h6 {[%clk 0:04:24.2]} 11. Bh4 {[%clk
0:03:35.5]} 11... Ne6 {[%clk 0:04:21.3]} 12. b4 {[%clk 0:03:18.6]} 12... a5
{[%clk 0:04:17.3]} 13. b5 {[%clk 0:03:13.5]} 13... Nd7 {[%clk 0:04:16]} 14. bxc6
{[%clk 0:03:07.6]} 14... bxc6 {[%clk 0:04:15.3]} 15. Rb1 {[%clk 0:03:04.1]}
15... Ba6 {[%clk 0:04:12.9]} 16. Bxa6 {[%clk 0:02:59.6]} 16... Rxa6 {[%clk
0:04:12.8]} 17. Na4 {[%clk 0:02:43.5]} 17... g5 {[%clk 0:04:06.2]} 18. Bg3
{[%clk 0:02:38.5]} 18... Nb6 {[%clk 0:04:05.4]} 19. Nc5 {[%clk 0:02:33.2]} 19...
Nxc5 {[%clk 0:04:03.6]} 20. dxc5 {[%clk 0:02:32.1]} 20... Nc4 {[%clk 0:04:02.7]}
21. Nd4 {[%clk 0:02:11.8]} 21... e6 {[%clk 0:03:45.6]} 22. a4 {[%clk 0:01:37.3]}
22... Qc7 {[%clk 0:03:39]} 23. Nf5 {[%clk 0:01:23]} 23... exf5 {[%clk
0:03:30.8]} 24. e6 {[%clk 0:01:19.7]} 24... f4 {[%clk 0:03:26.6]} 25. e7 {[%clk
0:01:15.1]} 25... Re8 {[%clk 0:03:25.6]} 26. Bxf4 {[%clk 0:00:51.5]} 26... Qxf4
{[%clk 0:03:22.5]} 27. g3 {[%clk 0:00:48.7]} 27... Qf6 {[%clk 0:03:19.4]} 28.
Rb8 {[%clk 0:00:37.4]} 28... Ra8 {[%clk 0:03:18.3]} 29. Rxa8 {[%clk 0:00:33.8]}
29... Rxa8 {[%clk 0:03:18.2]} 30. e8=Q+ {[%clk 0:00:31.9]} 30... Rxe8 {[%clk
0:03:17.3]} 31. Rxe8+ {[%clk 0:00:30.8]} 31... Kh7 {[%clk 0:03:17.1]} 32. Qe1
{[%clk 0:00:18.2]} 32... Ne5 {[%clk 0:03:13.9]} 33. Rd8 {[%clk 0:00:13.8]} 33...
Nf3+ {[%clk 0:03:11.7]} 34. Kf1 {[%clk 0:00:09.8]} 34... Nxe1 {[%clk 0:03:11.6]}
35. Rxd5 {[%clk 0:00:06.5]} 35... cxd5 {[%clk 0:03:10]} 36. c6 {[%clk
0:00:04.8]} 36... Qxc6 {[%clk 0:03:09.1]} 37. Kxe1 {[%clk 0:00:03.9]} 37... Qxc2
{[%clk 0:03:08]} 38. Kf1 {[%clk 0:00:02.7]} 38... d4 {[%clk 0:03:07.9]} 39. Ke1
{[%clk 0:00:01.4]} 39... d3 {[%clk 0:03:07.8]} 0-1

[Event "Live Chess"]
[Site "Chess.com"]
[Date "2024.06.01"]
[Round "-"]
[White "MagnersCarlsberg2870"]
[Black "viktor_forever1994"]
[Result "1-0"]
[WhiteElo "1876"]
[BlackElo "1390"]
[TimeControl "300"]
[EndTime "11:25:42 PDT"]
[Termination "MagnersCarlsberg2870 won on time"]

1. d4 {[%clk 0:04:56.2]} 1... Nf6 {[%clk 0:04:58.5]} 2. e3 {[%clk 0:04:53.8]}
2... d5 {[%clk 0:04:58.4]} 3. Bd3 {[%clk 0:04:52.9]} 3... e6 {[%clk 0:04:58.3]}
4. Nf3 {[%clk 0:04:51.8]} 4... Be7 {[%clk 0:04:57.4]} 5. Ne5 {[%clk 0:04:50.8]}
5... c5 {[%clk 0:04:57.3]} 6. c3 {[%clk 0:04:49.8]} 6... Nbd7 {[%clk 0:04:53.9]}
7. f4 {[%clk 0:04:48.8]} 7... cxd4 {[%clk 0:04:46.5]} 8. exd4 {[%clk 0:04:47.7]}
8... O-O {[%clk 0:04:41.2]} 9. Nd2 {[%clk 0:04:46.4]} 9... Ne4 {[%clk
0:04:33.6]} 10. Nxe4 {[%clk 0:04:45]} 10... dxe4 {[%clk 0:04:33.5]} 11. Bxe4
{[%clk 0:04:44.3]} 11... f5 {[%clk 0:04:32.2]} 12. Bf3 {[%clk 0:04:36.6]} 12...
Nxe5 {[%clk 0:04:26.3]} 13. fxe5 {[%clk 0:04:34.7]} 13... Rb8 {[%clk 0:04:23.4]}
14. O-O {[%clk 0:04:24.4]} 14... b6 {[%clk 0:04:19.4]} 15. d5 {[%clk 0:04:23]}
15... Bc5+ {[%clk 0:04:03.6]} 16. Kh1 {[%clk 0:04:21.2]} 16... Bb7 {[%clk
0:03:27.2]} 17. d6 {[%clk 0:04:14.6]} 17... Qh4 {[%clk 0:02:53.9]} 18. Qb3
{[%clk 0:04:06.1]} 18... Kf7 {[%clk 0:02:27.7]} 19. Bd2 {[%clk 0:03:45.3]} 19...
Bf2 {[%clk 0:01:54.8]} 20. Be1 {[%clk 0:03:38.1]} 20... Bxe1 {[%clk 0:01:27.8]}
21. Raxe1 {[%clk 0:03:36]} 21... Bxf3 {[%clk 0:01:24.8]} 22. gxf3 {[%clk
0:03:32.6]} 22... Rfd8 {[%clk 0:00:54.7]} 23. Qb4 {[%clk 0:03:23.6]} 23... Qxb4
{[%clk 0:00:47.7]} 24. cxb4 {[%clk 0:03:22.4]} 24... Ke8 {[%clk 0:00:45.9]} 25.
Rc1 {[%clk 0:03:21]} 25... Kd7 {[%clk 0:00:36.9]} 26. Rc7+ {[%clk 0:03:18.8]}
26... Ke8 {[%clk 0:00:34]} 27. Rg1 {[%clk 0:03:16.9]} 27... g6 {[%clk
0:00:26.5]} 28. Rxh7 {[%clk 0:03:12.7]} 28... Rbc8 {[%clk 0:00:23.7]} 29. Rh8+
{[%clk 0:03:11.2]} 29... Kd7 {[%clk 0:00:22.6]} 30. Rxd8+ {[%clk 0:03:05.2]}
30... Rxd8 {[%clk 0:00:17]} 31. Rxg6 {[%clk 0:03:04]} 31... Rc8 {[%clk
0:00:13.2]} 32. Rg7+ {[%clk 0:03:02.6]} 32... Kc6 {[%clk 0:00:04.5]} 33. Rxa7
{[%clk 0:02:58.5]} 33... Kd5 {[%clk 0:00:03]} 34. d7 {[%clk 0:02:57]} 34... Rd8
{[%clk 0:00:01.9]} 35. h4 {[%clk 0:02:55.5]} 35... Kc6 {[%clk 0:00:00.7]} 36. h5
{[%clk 0:02:53.9]} 1-0

[Event "Live Chess"]
[Site "Chess.com"]
[Date "2024.06.01"]
[Round "-"]
[White "JohanKjeldahl"]
[Black "Crowded_House"]
[Result "1-0"]
[WhiteElo "1836"]
[BlackElo "1757"]
[TimeControl "300"]
[EndTime "11:25:44 PDT"]
[Termination "JohanKjeldahl won by checkmate"]

1. c4 {[%clk 0:04:55.5]} 1... e6 {[%clk 0:04:58.8]} 2. Nc3 {[%clk 0:04:53.6]}
2... d5 {[%clk 0:04:56.3]} 3. d4 {[%clk 0:04:52.3]} 3... c6 {[%clk 0:04:55.1]}
4. Nf3 {[%clk 0:04:50.3]} 4... Bb4 {[%clk 0:04:52.9]} 5. e3 {[%clk 0:04:46.8]}
5... Nf6 {[%clk 0:04:51.3]} 6. Bd3 {[%clk 0:04:44.3]} 6... Nbd7 {[%clk
0:04:48.3]} 7. O-O {[%clk 0:04:41.8]} 7... O-O {[%clk 0:04:46.4]} 8. Bd2 {[%clk
0:04:39.9]} 8... b6 {[%clk 0:04:41]} 9. a3 {[%clk 0:04:38]} 9... Bxc3 {[%clk
0:04:38.7]} 10. bxc3 {[%clk 0:04:37]} 10... Ba6 {[%clk 0:04:31.1]} 11. Qe2
{[%clk 0:04:34.5]} 11... dxc4 {[%clk 0:04:26.9]} 12. Bxc4 {[%clk 0:04:32.5]}
12... Bxc4 {[%clk 0:04:26.5]} 13. Qxc4 {[%clk 0:04:31.3]} 13... Qc7 {[%clk
0:04:16.2]} 14. Rfe1 {[%clk 0:04:22.1]} 14... Rfc8 {[%clk 0:04:12.1]} 15. e4
{[%clk 0:04:19.7]} 15... Ne8 {[%clk 0:04:00.7]} 16. e5 {[%clk 0:04:17.1]} 16...
b5 {[%clk 0:03:56.5]} 17. Qd3 {[%clk 0:04:15.5]} 17... Nb6 {[%clk 0:03:55.6]}
18. Ng5 {[%clk 0:04:13.9]} 18... g6 {[%clk 0:03:53.7]} 19. Ne4 {[%clk
0:04:12.5]} 19... Nc4 {[%clk 0:03:45.5]} 20. Bf4 {[%clk 0:04:00.2]} 20... Rd8
{[%clk 0:03:26.6]} 21. Qh3 {[%clk 0:03:58.2]} 21... h5 {[%clk 0:02:57.2]} 22. g4
{[%clk 0:03:53.6]} 22... Ng7 {[%clk 0:02:44.6]} 23. Nf6+ {[%clk 0:03:51.3]}
23... Kf8 {[%clk 0:02:31.7]} 24. gxh5 {[%clk 0:03:48.1]} 24... Nxh5 {[%clk
0:02:18.9]} 25. Nxh5 {[%clk 0:03:41.5]} 25... gxh5 {[%clk 0:02:18.2]} 26. Qxh5
{[%clk 0:03:35.3]} 26... Ke8 {[%clk 0:02:12.9]} 27. Bg5 {[%clk 0:03:29.9]} 27...
Rdc8 {[%clk 0:02:06.4]} 28. Qh8+ {[%clk 0:03:10.9]} 28... Kd7 {[%clk 0:02:05]}
29. Qf6 {[%clk 0:03:08]} 29... Re8 {[%clk 0:01:50.3]} 30. Qxf7+ {[%clk
0:03:05.6]} 30... Kc8 {[%clk 0:01:45.8]} 31. Qxe8+ {[%clk 0:03:04.6]} 31... Kb7
{[%clk 0:01:45.5]} 32. Qe7 {[%clk 0:03:02.7]} 32... Qxe7 {[%clk 0:01:43.8]} 33.
Bxe7 {[%clk 0:03:01.2]} 33... Rg8+ {[%clk 0:01:41.2]} 34. Kf1 {[%clk 0:02:57.8]}
34... Nd2+ {[%clk 0:01:40.3]} 35. Ke2 {[%clk 0:02:56.6]} 35... Ne4 {[%clk
0:01:33.6]} 36. Rac1 {[%clk 0:02:52.6]} 36... Rg2 {[%clk 0:01:30.2]} 37. Bh4
{[%clk 0:02:50.8]} 37... Rxh2 {[%clk 0:01:28.4]} 38. Rh1 {[%clk 0:02:45.5]}
38... Rxh1 {[%clk 0:01:17.8]} 39. Rxh1 {[%clk 0:02:42.8]} 39... Nxc3+ {[%clk
0:01:17.5]} 40. Kd3 {[%clk 0:02:41.8]} 40... Nd5 {[%clk 0:01:14.6]} 41. Bg3
{[%clk 0:02:37.4]} 41... a5 {[%clk 0:01:08.7]} 42. Rh6 {[%clk 0:02:33.3]} 42...
Nc7 {[%clk 0:01:05.2]} 43. f4 {[%clk 0:02:26.4]} 43... b4 {[%clk 0:01:02.1]} 44.
axb4 {[%clk 0:02:25.4]} 44... axb4 {[%clk 0:01:01.3]} 45. Kc4 {[%clk 0:02:20.9]}
45... Kb6 {[%clk 0:00:58.4]} 46. Kxb4 {[%clk 0:02:19.1]} 46... Nd5+ {[%clk
0:00:56.4]} 47. Kc4 {[%clk 0:02:17]} 47... Ne3+ {[%clk 0:00:53.8]} 48. Kd3
{[%clk 0:02:14.7]} 48... Nf5 {[%clk 0:00:50.5]} 49. Rg6 {[%clk 0:02:13.4]} 49...
Kc7 {[%clk 0:00:44.6]} 50. Be1 {[%clk 0:02:10.4]} 50... Kd7 {[%clk 0:00:42.2]}
51. Bb4 {[%clk 0:02:07.2]} 51... Nh4 {[%clk 0:00:36]} 52. Rg7+ {[%clk
0:02:05.7]} 52... Kd8 {[%clk 0:00:32.9]} 53. Kc4 {[%clk 0:02:00.2]} 53... Nf5
{[%clk 0:00:30.9]} 54. Rh7 {[%clk 0:01:57.6]} 54... Ne3+ {[%clk 0:00:28.4]} 55.
Kc5 {[%clk 0:01:55.9]} 55... Nd5 {[%clk 0:00:27.6]} 56. Ba5+ {[%clk 0:01:52.6]}
56... Ke8 {[%clk 0:00:25.9]} 57. Kd6 {[%clk 0:01:50.9]} 57... Nxf4 {[%clk
0:00:20.1]} 58. Kxc6 {[%clk 0:01:46.5]} 58... Ne2 {[%clk 0:00:17.5]} 59. Bb6
{[%clk 0:01:43.2]} 59... Nf4 {[%clk 0:00:13.7]} 60. Kd6 {[%clk 0:01:41.7]} 60...
Nd5 {[%clk 0:00:10.7]} 61. Kxe6 {[%clk 0:01:37.7]} 61... Nxb6 {[%clk 0:00:09.7]}
62. Rh8# {[%clk 0:01:34.6]} 1-0

[Event "Live Chess"]
[Site "Chess.com"]
[Date "2024.06.01"]
[Round "-"]
[White "CliveFrostick"]
[Black "yarek"]
[Result "0-1"]
[WhiteElo "1850"]
[BlackElo "1732"]
[TimeControl "300"]
[EndTime "11:25:49 PDT"]
[Termination "yarek won on time"]

1. e4 {[%clk 0:04:56.8]} 1... g6 {[%clk 0:04:58.3]} 2. d4 {[%clk 0:04:54.9]}
2... Bg7 {[%clk 0:04:57]} 3. Nc3 {[%clk 0:04:53.7]} 3... c6 {[%clk 0:04:56.4]}
4. Nf3 {[%clk 0:04:47.5]} 4... d5 {[%clk 0:04:55.4]} 5. h3 {[%clk 0:04:46.6]}
5... dxe4 {[%clk 0:04:51.2]} 6. Nxe4 {[%clk 0:04:45.6]} 6... Nf6 {[%clk
0:04:50.7]} 7. Bd3 {[%clk 0:04:42.1]} 7... Nxe4 {[%clk 0:04:46.3]} 8. Bxe4
{[%clk 0:04:40.6]} 8... O-O {[%clk 0:04:45.9]} 9. c3 {[%clk 0:04:39.3]} 9... Nd7
{[%clk 0:04:43.9]} 10. Bf4 {[%clk 0:04:37.2]} 10... Qb6 {[%clk 0:04:34.3]} 11.
Qd2 {[%clk 0:04:36.1]} 11... Nf6 {[%clk 0:04:25.2]} 12. Bd3 {[%clk 0:04:31.9]}
12... Be6 {[%clk 0:04:15.2]} 13. b4 {[%clk 0:04:18.3]} 13... Nd5 {[%clk
0:04:08.6]} 14. Bh6 {[%clk 0:04:15.6]} 14... a5 {[%clk 0:03:28.1]} 15. Bxg7
{[%clk 0:04:06.3]} 15... Kxg7 {[%clk 0:03:28]} 16. bxa5 {[%clk 0:03:58.3]} 16...
Qxa5 {[%clk 0:03:21.4]} 17. c4 {[%clk 0:03:41.4]} 17... Qxd2+ {[%clk 0:03:17.3]}
18. Kxd2 {[%clk 0:03:38.9]} 18... Nf4 {[%clk 0:03:15]} 19. Bf1 {[%clk
0:03:32.1]} 19... Rfd8 {[%clk 0:03:02.1]} 20. g3 {[%clk 0:03:27.5]} 20... Nh5
{[%clk 0:02:57.7]} 21. a4 {[%clk 0:03:22.6]} 21... Nf6 {[%clk 0:02:51.4]} 22.
Bd3 {[%clk 0:03:18.2]} 22... Ra5 {[%clk 0:02:43.9]} 23. g4 {[%clk 0:02:56.6]}
23... Rda8 {[%clk 0:02:35.5]} 24. Rhb1 {[%clk 0:02:49.6]} 24... Bc8 {[%clk
0:02:18.5]} 25. Bc2 {[%clk 0:02:48.3]} 25... b5 {[%clk 0:02:07.8]} 26. Ne5
{[%clk 0:02:36.3]} 26... bxc4 {[%clk 0:01:45.7]} 27. Nxc6 {[%clk 0:02:31.9]}
27... Rd5 {[%clk 0:01:39.1]} 28. Kc3 {[%clk 0:02:23.4]} 28... Kf8 {[%clk
0:01:11.8]} 29. f4 {[%clk 0:01:46.1]} 29... h6 {[%clk 0:00:55.3]} 30. Re1 {[%clk
0:01:27.4]} 30... e6 {[%clk 0:00:46.4]} 31. Reb1 {[%clk 0:01:02.5]} 31... Rd6
{[%clk 0:00:42.6]} 32. Ne5 {[%clk 0:00:50.7]} 32... Nd5+ {[%clk 0:00:40.7]} 33.
Kxc4 {[%clk 0:00:41.2]} 33... Ne3+ {[%clk 0:00:34.2]} 34. Kc5 {[%clk 0:00:40]}
34... Nxc2 {[%clk 0:00:29.2]} 35. Kxd6 {[%clk 0:00:38.6]} 35... Nxa1 {[%clk
0:00:28.2]} 36. Rxa1 {[%clk 0:00:33.5]} 36... Bb7 {[%clk 0:00:26.4]} 37. Nd7+
{[%clk 0:00:30.3]} 37... Kg7 {[%clk 0:00:19.5]} 38. Kc7 {[%clk 0:00:27.8]} 38...
Bg2 {[%clk 0:00:16.4]} 39. a5 {[%clk 0:00:26.3]} 39... Bxh3 {[%clk 0:00:14.8]}
40. a6 {[%clk 0:00:22.5]} 40... Bxg4 {[%clk 0:00:14.2]} 41. a7 {[%clk
0:00:19.7]} 41... Bf3 {[%clk 0:00:13.6]} 42. Nb6 {[%clk 0:00:18.3]} 42... Re8
{[%clk 0:00:11.4]} 43. a8=Q {[%clk 0:00:11.7]} 43... Bxa8 {[%clk 0:00:10.9]} 44.
Nxa8 {[%clk 0:00:09.6]} 44... h5 {[%clk 0:00:08.9]} 45. Kd6 {[%clk 0:00:07.4]}
45... h4 {[%clk 0:00:08.2]} 46. Nc7 {[%clk 0:00:06.4]} 46... Rh8 {[%clk
0:00:05.9]} 47. Rh1 {[%clk 0:00:03.4]} 47... h3 {[%clk 0:00:05.5]} 48. Ke5
{[%clk 0:00:02.4]} 48... h2 {[%clk 0:00:04.8]} 49. Ke4 {[%clk 0:00:01.5]} 49...
f6 {[%clk 0:00:03.8]} 50. Kf3 {[%clk 0:00:00.7]} 50... g5 {[%clk 0:00:03.4]} 51.
Kg2 {[%clk 0:00:00.3]} 51... g4 {[%clk 0:00:02.3]} 0-1

[Event "Live Chess"]
[Site "Chess.com"]
[Date "2024.06.01"]
[Round "-"]
[White "Golden_Plans"]
[Black "Nazar-Makarchuk"]
[Result "1-0"]
[WhiteElo "2253"]
[BlackElo "1510"]
[TimeControl "300"]
[EndTime "11:25:56 PDT"]
[Termination "Golden_Plans won by resignation"]

1. e4 {[%clk 0:04:57.2]} 1... d5 {[%clk 0:04:59.2]} 2. exd5 {[%clk 0:04:56]}
2... Qxd5 {[%clk 0:04:58.1]} 3. Nc3 {[%clk 0:04:55.3]} 3... Qd8 {[%clk
0:04:57.6]} 4. d4 {[%clk 0:04:54.2]} 4... Nf6 {[%clk 0:04:57.3]} 5. Nf3 {[%clk
0:04:53.8]} 5... e6 {[%clk 0:04:56.7]} 6. Ne5 {[%clk 0:04:52.9]} 6... Nbd7
{[%clk 0:04:55.3]} 7. f4 {[%clk 0:04:51.6]} 7... Nxe5 {[%clk 0:04:54.3]} 8. fxe5
{[%clk 0:04:51.5]} 8... Nd5 {[%clk 0:04:52.5]} 9. Nxd5 {[%clk 0:04:51]} 9...
Qxd5 {[%clk 0:04:52]} 10. c4 {[%clk 0:04:50.1]} 10... Qd8 {[%clk 0:04:50.7]} 11.
Be3 {[%clk 0:04:48.4]} 11... Bb4+ {[%clk 0:04:49.8]} 12. Kf2 {[%clk 0:04:44.5]}
12... O-O {[%clk 0:04:46.7]} 13. Bd3 {[%clk 0:04:43.9]} 13... b6 {[%clk
0:04:40.9]} 14. Qf3 {[%clk 0:04:41.1]} 14... c5 {[%clk 0:04:34.6]} 15. Qxa8
{[%clk 0:04:39.4]} 15... cxd4 {[%clk 0:04:32.8]} 16. Bc1 {[%clk 0:04:38.6]}
16... a5 {[%clk 0:04:25]} 17. Qe4 {[%clk 0:04:37.6]} 17... g6 {[%clk 0:04:22.6]}
18. Bh6 {[%clk 0:04:36.2]} 18... Re8 {[%clk 0:04:19]} 19. Qg4 {[%clk 0:04:35.7]}
19... Bf8 {[%clk 0:04:17.1]} 20. Bg5 {[%clk 0:04:34.5]} 20... Be7 {[%clk
0:04:15.2]} 21. h4 {[%clk 0:04:32.5]} 21... Bxg5 {[%clk 0:04:14.1]} 22. hxg5
{[%clk 0:04:32.4]} 22... Ba6 {[%clk 0:04:05.8]} 23. b3 {[%clk 0:04:29.2]} 23...
Qc7 {[%clk 0:04:04.6]} 24. Qg3 {[%clk 0:04:24.9]} 24... a4 {[%clk 0:03:42.7]}
25. Rxh7 {[%clk 0:04:23]} 25... Kxh7 {[%clk 0:03:39.8]} 26. Qh4+ {[%clk
0:04:21.9]} 26... Kg7 {[%clk 0:03:36]} 27. Qh6+ {[%clk 0:04:20.9]} 27... Kg8
{[%clk 0:03:34.3]} 28. Rh1 {[%clk 0:04:20.4]} 28... f5 {[%clk 0:03:23.7]} 29.
Qh8+ {[%clk 0:04:17]} 1-0

[Event "Live Chess"]
[Site "Chess.com"]
[Date "2024.06.01"]
[Round "-"]
[White "LanceMaster23"]
[Black "Grace6363"]
[Result "1-0"]
[WhiteElo "1787"]
[BlackElo "1166"]
[TimeControl "300"]
[EndTime "11:26:14 PDT"]
[Termination "LanceMaster23 won by checkmate"]

1. Nf3 {[%clk 0:04:57.2]} 1... c5 {[%clk 0:04:58.1]} 2. g3 {[%clk 0:04:56.3]}
2... Nc6 {[%clk 0:04:56.5]} 3. Bg2 {[%clk 0:04:55.3]} 3... d5 {[%clk 0:04:53.6]}
4. O-O {[%clk 0:04:50.7]} 4... Nf6 {[%clk 0:04:52.7]} 5. d4 {[%clk 0:04:49.2]}
5... c4 {[%clk 0:04:46.5]} 6. Nbd2 {[%clk 0:03:58.5]} 6... Bg4 {[%clk
0:04:42.8]} 7. Re1 {[%clk 0:03:57.1]} 7... Qb6 {[%clk 0:04:40.6]} 8. c3 {[%clk
0:03:55.7]} 8... e6 {[%clk 0:04:38.3]} 9. e4 {[%clk 0:03:54.3]} 9... dxe4 {[%clk
0:04:12.2]} 10. Nxe4 {[%clk 0:03:54.2]} 10... Be7 {[%clk 0:04:07.2]} 11. Qa4
{[%clk 0:03:42.5]} 11... Nxe4 {[%clk 0:03:54.5]} 12. Rxe4 {[%clk 0:03:42.4]}
12... O-O {[%clk 0:03:48.5]} 13. Qxc4 {[%clk 0:03:40.7]} 13... Rac8 {[%clk
0:03:27.9]} 14. Qb3 {[%clk 0:03:33.1]} 14... Qxb3 {[%clk 0:03:24.1]} 15. axb3
{[%clk 0:03:33]} 15... a6 {[%clk 0:03:19.9]} 16. Ne5 {[%clk 0:03:29.8]} 16...
Nxe5 {[%clk 0:03:17.9]} 17. Rxe5 {[%clk 0:03:29.4]} 17... Bd6 {[%clk 0:03:12.7]}
18. Rg5 {[%clk 0:02:51.3]} 18... Bd1 {[%clk 0:03:08.4]} 19. Bxb7 {[%clk
0:02:46.1]} 19... Rb8 {[%clk 0:03:01.2]} 20. Bxa6 {[%clk 0:02:39.4]} 20... Bxb3
{[%clk 0:02:58.1]} 21. Bd3 {[%clk 0:02:35.4]} 21... f6 {[%clk 0:02:48.7]} 22.
Rb5 {[%clk 0:02:23.5]} 22... Rxb5 {[%clk 0:02:36.1]} 23. Bxb5 {[%clk 0:02:23.4]}
23... e5 {[%clk 0:02:29.6]} 24. Ra6 {[%clk 0:02:04.4]} 24... Be7 {[%clk
0:02:17.7]} 25. Ra7 {[%clk 0:01:59.8]} 25... Bd6 {[%clk 0:02:12.7]} 26. Rd7
{[%clk 0:01:55.3]} 26... Bb8 {[%clk 0:02:04.8]} 27. d5 {[%clk 0:01:41.4]} 27...
e4 {[%clk 0:01:53.5]} 28. c4 {[%clk 0:01:35.5]} 28... Be5 {[%clk 0:01:33.4]} 29.
c5 {[%clk 0:01:29.5]} 29... Bd4 {[%clk 0:01:28.8]} 30. c6 {[%clk 0:01:25.1]}
30... Be5 {[%clk 0:01:11.2]} 31. c7 {[%clk 0:00:55.1]} 31... Rc8 {[%clk
0:01:06.3]} 32. Rd8+ {[%clk 0:00:53.6]} 32... Rxd8 {[%clk 0:00:54.3]} 33.
cxd8=Q+ {[%clk 0:00:53.5]} 33... Kf7 {[%clk 0:00:53.5]} 34. Qe8# {[%clk
0:00:51.5]} 1-0